Cogmind - Beta 9.1 *** ADVENTURER MODE // 2019.10.31 @ 01:16:34 // Halloween2019/Abominations Player: Joseph Result: Destroyed by Lesser Abomination with Medium Laser Performance ------------- Evolutions (0) 0 Regions Visited (1) 200 Robots Destroyed (7) 35 Value Destroyed (167) 167 Prototype IDs (3) 60 Alien Tech Used (0) 0 Bonus (0) 0 TOTAL SCORE: 462 Bonus ------- None Cogmind --------- Core Integrity 0/250 Matter 300/300 Energy 99/100 System Corruption 4% Temperature Cool (9) Location -10/Materials Parts ------- Power (1) Propulsion (2) Utility (2) Seismic Analyzer Weapon (2) Inventory (4) Light Ion Engine Visual Processing Unit Grenade Launcher Mining Laser Peak State ------------ Power Light Ion Engine Propulsion Light Treads Light Treads Utility Improved Terrain Scanner Seismic Analyzer Weapon Medium Laser Assault Rifle Inventory Light Ion Engine Mining Laser Mining Laser [Rating: 8] Favorites ----------- Power Light Ion Engine Engine Light Ion Engine Propulsion Light Treads Treads Light Treads Utility Seismic Analyzer Device Improved Terrain Scanner Processor Seismic Analyzer Weapon Assault Rifle Energy Gun Medium Laser Ballistic Gun Assault Rifle Build | -11 -10 ------- Run | Scr Mat Slots Evolved . | . . Power . | . . Propulsion . | . . Utility . | . . Weapon . | . . Parts Attached 8 | 7 1 Power 2 | 1 1 Engine 2 | 1 1 Core . | . . Reactor . | . . Propulsion 2 | 2 . Treads 2 | 2 . Leg . | . . Wheel . | . . Hover . | . . Flight . | . . Utility 2 | 2 . Device 1 | 1 . Storage . | . . Processor 1 | 1 . Hackware . | . . Protection . | . . Artifact . | . . Weapon 2 | 2 . Energy Gun 1 | 1 . Energy Cannon . | . . Ballistic Gun 1 | 1 . Ballistic Cannon . | . . Launcher . | . . Special Weapon . | . . Impact Weapon . | . . Slashing Weapon . | . . Piercing Weapon . | . . Special Melee Weapon . | . . Unidentified Prototypes . | . . Parts Lost 6 | . 6 Power 1 | . 1 Propulsion 2 | . 2 Utility 1 | . 1 Weapon 2 | . 2 Highest Loss Streak 5 | . 5 Average Slot Usage (%) 88 | . 88 Engine 13 | . 13 Treads 27 | . 27 Device 5 | . 5 Processor 14 | . 14 Energy Gun 13 | . 13 Ballistic Gun 13 | . 13 Naked Turns . | . . Heaviest Build 9 | 8 9 Greatest Support 40 | 40 40 Greatest Overweight (x) 2 | 2 1 Average Overweight (x) . | . . Largest Inventory Capacity 4 | 4 4 Average Capacity 4 | 4 4 Most Carried 4 | 4 4 Average Carried 3 | 2 3 Final Capacity 4 | 4 4 Final Carried 4 | 3 4 Class Distribution -------------------- 100% | Mutant Dominant Class ---------------- Mutant | -10/Materials Resources | -11 -10 ----------- Run | Scr Mat Matter Collected 356 | 288 68 Remotely . | . . Salvage Created 371 | 110 261 Parts 17 | 7 10 Haulers Intercepted . | . . Recyclers Shooed . | . . Parts Field Recycled . | . . Retrieved Matter . | . . Parts Self-Destructed . | . . Prevented . | . . Kills | -11 -10 ------- Run | Scr Mat Combat Hostiles Destroyed 3 | . 3 Guns 3 | . 3 Classes Destroyed 4 | 2 2 Tunneler 2 | 2 . Recycler 2 | 1 1 Grunt 2 | . 2 Abomination 1 | . 1 Best Kill Streak 3 | 3 1 Combat Bots Only 1 | . 1 Max Kills in Single Turn 1 | 1 1 Gunslinging . | . . Exploded . | . . Melee . | . . Uniques/NPCs Destroyed . | . . Combat | -11 -10 -------- Run | Scr Mat Damage Taken 1052 | . 1052 Core 254 | . 254 Absorbed by Shields . | . . Core Remaining (%) 100 | 100 . Volleys Fired 39 | 6 33 Largest 2 | 2 2 Hottest 70 | 70 70 Shots Fired 76 | 12 64 Gun 76 | 12 64 Cannon . | . . Launcher . | . . Special . | . . Kinetic 39 | 6 33 Thermal 37 | 6 31 Explosive . | . . Electromagnetic . | . . Robot Hit Streak 19 | 6 19 Robot Miss Streak 3 | 1 3 Penetration Max . | . . Secondary Targets . | . . Shots Hit Robots 57 | 8 49 Core Hits 20 | 4 16 Critical Hits 1 | . 1 Critical Kills . | . . Critical Parts Destroyed 1 | . 1 Melee Attacks . | . . Impact . | . . Slashing . | . . Piercing . | . . Sneak Attacks . | . . Combat Hostiles . | . . Follow-up Attacks . | . . Damage Inflicted 794 | 103 691 Guns 779 | 103 676 Cannons . | . . Explosions . | . . Melee . | . . Ramming 15 | . 15 Kinetic 343 | 41 302 Thermal 436 | 62 374 Explosive . | . . Electromagnetic . | . . Impact . | . . Slashing . | . . Piercing . | . . Highest Corruption 4 | . 4 Average Corruption 2 | . 2 Corruption Purged . | . . Overload Shots . | . . Overflow Damage . | . . Projectiles . | . . Explosions . | . . Melee . | . . Knockbacks . | . . Impact . | . . Kinetic . | . . Secondary . | . . Self-Inflicted Damage 5 | . 5 Shots . | . . Rammed 5 | . 5 Targets Rammed 5 | . 5 Kicked . | . . Crushed . | . . Highest Temperature 183 | 18 183 Average Temperature 41 | 9 46 Received Heat Transfer 339 | . 339 Siege Activations . | . . Robots Corrupted . | . . Combat Hostiles . | . . Parts Fried . | . . Impact Corruptions . | . . Robots Melted . | . . Combat Hostiles . | . . Parts Melted 1 | 1 . Heat Transferred 820 | 185 635 Parts Sabotaged . | . . Parts Stolen . | . . Parts Stripped . | . . Power Chain Reactions . | . . Missiles Intercepted . | . . Alert | -11 -10 ------- Run | Scr Mat Peak Influence 75 | 15 75 Average Influence 24 | 11 39 Maximum Alert Level . | . . Low Security (%) 100 | . . Level 1 . | . . Level 2 . | . . Level 3 . | . . Level 4 . | . . Level 5 . | . . High Security . | . . Max Security . | . . Squads Dispatched 1 | . 1 Investigation . | . . Extermination . | . . Reinforcement . | . . Assault 1 | . 1 Garrison . | . . Intercept . | . . Construction Impeded . | . . Haulers Reinforced . | . . Stealth | -11 -10 --------- Run | Scr Mat Distress Signals 2 | . 2 Communications Jammed . | . . Distress Signals . | . . Times Spotted 10 | . 10 Peak Tracking Total 5 | . 5 Tactical Retreats . | . . Traps | -11 -10 ------- Run | Scr Mat Traps Triggered . | . . Indirectly . | . . Trap Hack Attempts . | . . Triggered . | . . Disarmed . | . . Reprogrammed . | . . Reused . | . . Traps Extracted . | . . Installed . | . . Triggered . | . . Machines | -11 -10 ---------- Run | Scr Mat Machines Disabled . | . . Max in Single Turn . | . . Machines Sabotaged . | . . Garrisons Compromised . | . . Overloaded Fab Kills . | . . Fab Network Shutdowns . | . . Hacking | -11 -10 --------- Run | Scr Mat Machines Accessed 1 | . 1 Terminals 1 | . 1 Fabricators . | . . Repair Stations . | . . Recycling Units . | . . Scanalyzers . | . . Garrison Access . | . . Total Hacks 3 | . 3 Successful 2 | . 2 Failed 1 | . 1 Catastrophic . | . . Database Lockouts . | . . Manual . | . . Terminals 3 | . 3 Fabricators . | . . Repair Stations . | . . Recycling Units . | . . Scanalyzers . | . . Garrison Access . | . . Terminal Hacks 2 | . 2 Prototype ID Bank 1 | . 1 Recall Investigation 1 | . 1 Fabricator Hacks . | . . Repair Station Hacks . | . . Recycling Unit Hacks . | . . Scanalyzer . | . . Garrison Access Hacks . | . . Unauthorized Hacks . | . . Terminals . | . . Fabricators . | . . Repair Stations . | . . Recycling Units . | . . Scanalyzers . | . . Garrison Access . | . . Data Cores Recovered . | . . Used . | . . Hacking Detections 1 | . 1 Full Trace Events . | . . Feedback Events . | . . Feedback Blocked . | . . Robot Schematics Acquired . | . . Robots Built . | . . Matter . | . . Time . | . . Total Robot Build Rating . | . . Part Schematics Acquired . | . . Parts Built . | . . Matter . | . . Time . | . . Total Part Build Rating . | . . Parts Repaired . | . . Time . | . . Parts Recycled . | . . Recycled Matter . | . . Retrieved Matter . | . . Retrieved Components . | . . Parts Scanalyzed . | . . Part Schematics Acquired . | . . Parts Damaged . | . . Bothacking | -11 -10 ------------ Run | Scr Mat Used RIF Installer . | . . Robots Hacked . | . . Non-combat . | . . Combat . | . . Robot Hacks Applied . | . . Relay Couplers Released . | . . Robots Rewired . | . . Allies Hacked . | . . Hacks Repelled . | . . Allies | -11 -10 -------- Run | Scr Mat Total Allies . | . . Largest Group . | . . Highest-Rated Group . | . . Highest-Rated Ally . | . . Total Orders . | . . Ally Attacks . | . . Total Damage . | . . Kills . | . . Allies Corrupted . | . . Allies Melted . | . . Intel | -11 -10 ------- Run | Scr Mat Robot Analysis Total . | . . Derelict Logs Recovered . | . . Drone Launches . | . . Drone Recoveries . | . . Exploration | -11 -10 ------------- Run | Scr Mat Turns Passed 616 | 328 288 Spaces Moved 234 | 119 115 Core 42 | 23 19 Treads 192 | 96 96 Legs . | . . Wheels . | . . Hover . | . . Flight . | . . Fastest Speed 50 | 50 50 Average Speed 143 | 143 143 Slowest Speed 160 | 160 160 Overloaded Moves . | . . Propulsion Burnouts . | . . Robots Hopped . | . . Cave-ins Triggered . | . . Exploration Rate (%) 21 | 10 33 Regions Visited 1 Branch Regions . Pre-discovered Areas . | . . Known Exits Taken . | . . Unknown Exits Taken 1 | 1 . Scrap Searched . | . . Spaces Dug . | . . Terrain Destroyed . | . . Melee . | . . Projectile . | . . AOE . | . . Actions | -11 -10 --------- Run | Scr Mat Total 423 | 264 159 Wait 124 | 123 1 Move 233 | 118 115 Hop . | . . Pick Up 12 | 10 2 Fast Attach . | . . Attach 7 | 7 . Detach . | . . Swap 1 | . 1 Drop 2 | . 2 Fire 39 | 6 33 Melee . | . . Ram 3 | . 3 Kick . | . . Crush 2 | . 2 Escape Stasis . | . . Rewire . | . . Trap . | . . Miscellaneous . | . . Route ------- -11/Scrapyard -10/Materials History --------- Turn | Location | Event 21 | -11/Scrapyard | Discovered new exit (range 16) 329 | -11/Scrapyard | Entered Materials 330 | -10/Materials | Build established: Mutant 600 | -10/Materials | Core integrity fell below 50% 611 | -10/Materials | Core integrity fell below 20% 617 | -10/Materials | Destroyed by Lesser Abomination with Medium Laser Last Messages --------------- 00604_ Destabilizing: System corrupted (+2). 00605_ Lesser Abomination feeds off Hungry Anomaly, taking Lgt. Ion Engine. 00605_ Lesser Abomination feeds off Hungry Anomaly, taking Med. Laser. 00605_ Lesser Abomination feeds off Hungry Anomaly, taking Particle Gun, Wheel. 00606_ Hungry Anomaly eats Sml. Laser. 00606_ Lesser Abomination spits out Aluminum Leg. 00606_ Lesser Abomination absorbs Aluminum Leg. 00606_ Lesser Abomination feeds off Hungry Anomaly, taking Weight Redist. System. 00606_ G-34 Mercenary destroyed. 00607_ Hungry Anomaly eats Aluminum Leg. 00608_ Ion Engine destroyed. 00608_ Acquired 31 matter. 00615_ Slammed into R-06 Scavenger. 00615_ R-06 Scavenger destroyed. 00615_ Destabilizing: System corrupted (+2). 00615_ K-01 Serf cleans the Terminal. 00617_ Lesser Abomination sheds Corrupting Anomaly. Map ----- +----------------------------------------------------+ | ??????????????????????????????????????? | | ??????????????????????????????????????? | | ??????????????????????????????????????? | | ??????????????????????????????????????? | | ??????????????????????????????????????? | | ??????????????????????????????????????? | | ??????????????????????????????????????? | | ??????????????????????????????????????? | | ??????????????????????????????????????? | | ??????????????????????????????????????? | | ??????????????????????????????????????? | | ??????????????????????? ???????????? | | ??????????????????????# "??? "?????? | | ??????????????????????# "??? ""?"%?? | | ??????????????????????# ""? """ " # | | ??????????????????????# ? # | | ??????????????????????# % # | | ??#?????????"#######??# """ ? | | ??? ???????? ?# ^ """ ??? | | ???"" ???? ?? ## """ ?? | | ? "T" #? " "Y" ## ?? | | ?? k " " """ "# ?? | | ????! ; """""""""""# ???? | | ???????# ############ ## ########? | | ???????# % # #% | | ???????# !@% + "% | | ????# = # " | | ????# #######+#### ## "% | | ?????????# "# A## "% | | ?????????# ## %## " | | ?????????# "???## AAn " | | ???T?????# """ "# ##= " | | ?????????# """ # ## ####+####"""% | | ?????????#? ?# ## #?????????"" | | ?#??? ????####??# ## ?????????? | | ?????????????#### #######?????????? | | ? ? ???#????### #???????????????? | | ??? ??#?#?##??### ##???????????????? | | #? ???#####???#?## #????????????????? | | ???? ?# ?????## #????????????????? | | ??????# ###### #????????????????? | | ??""??+ T #?##?????????????? | | ??????# #######+#######???????????? | | ? ? ? # ? # % +???????????? | | ???"???#|#### #???????????? | | ??"?" ?#!#### #???????????? | | ????"??# % /% #???????????? | | ? ?? ##!#### #???????????? | | ???#???# ##?# #???????????? | | #?????## ##################???????????? | +----------------------------------------------------+ Best States ------------- Heat Dissipation 25 Energy Generation 10 Energy Capacity 250 Matter Stores 300 Matter Capacity 300 Sight Range 16 Terrain Scan Range 16 Terrain Scan Density 60 Resistance: KI 20 Resistance: TH 20 Resistance: EX 20 Resistance: EM 20 Resistance: I 20 Resistance: S 20 Resistance: P 20 Evasion (%) 50 Recoil Reduction 2 Item Schematics ----------------- None Robot Schematics ------------------ None Fabricated ------------ Nothing Alien Tech Used ----------------- None Achievements -------------- None Challenges ------------ None Game ------ Seed DataScatterDesublimator Manual? 0 Play Time 00:10:53 Cumulative 2.4 hours Start 2019.10.31 @ 01:06:36 End 2019.10.31 @ 01:16:34 Sessions 1 Manual Loads 0 Difficulty Adventurer Special Mode Halloween2019/Abominations Game No. 9 Rogue 3 Adventurer 3 Explorer 0 Win Type - Total 0 Types 0/0/0/0/0/0/0 Lore% 0 Gallery% 4 Achievement% 4 Wizard Run 0 Options --------- ASCII 0 Keyboard 0 Movement Mouse Keybinds 0 Fullscreen 1 Font 18/SmallcapsGlow Map View 76x50 Tactical HUD 1 Map Filters NONE Filters NONE Steam 1 RUN: e4649cee-57da-43c5-8de4-1f97a6111b73